bitfinex-derivatives/quotes_ETHF0:USTF0_20250321
["timestamp","ask_amount","ask_price","bid_price","bid_amount"]
[1742579937178,1.01623,1969.1,1969.0,1.01618]
[1742579937477,4.585,1969.1,1969.0,1.72338]
[1742579937876,3.294,1969.1,1969.0,1.72338]
[1742579938472,3.294,1969.1,1969.0,3.70418]
[1742579939473,2.30708,1969.3,1969.2,1.01612]
[1742579939672,5.60008,1969.3,1969.2,4.22392]
[1742579940277,3.293,1969.3,1969.2,4.22392]
[1742579940473,2.41054,1969.4,1969.3,1.01607]
[1742579940773,4.6875,1969.4,1969.3,3.70957]
[1742579941369,5.70352,1969.4,1969.3,3.70957]
[1742579941569,4.6875,1969.4,1969.3,3.70957]
[1742579942673,0.00761789,1969.5,1969.4,1.01602]
[1742579942972,5.60888789,1969.5,1969.4,5.55462]
[1742579943681,4.59291789,1969.5,1969.4,5.55462]
[1742579943981,5.60888789,1969.5,1969.4,5.55462]
[1742579945081,4.59291789,1969.5,1969.4,5.55462]
[1742579948382,0.00761789,1969.5,1969.4,5.55462]
[1742579950578,3.30061789,1969.5,1969.4,2.34682]
[1742579950881,4.66921789,1969.5,1969.4,5.55462]
[1742579952593,0.00761789,1969.5,1969.4,5.55462]
[1742579952790,3.30061789,1969.5,1969.4,5.55462]
[1742579954894,0.00761789,1969.5,1969.4,5.55462]
[1742579955294,7.89e-06,1969.5,1969.4,5.55462]
[1742579964499,7.89e-06,1969.5,1969.4,13.92662]
[1742579964695,1.3038,1969.8,1969.7,1.01587]
[1742579965002,1.3038,1969.8,1969.7,4.22367]
[1742579965204,4.5938,1970.1,1970.0,1.01571]
[1742579965500,4.5938,1970.1,1970.0,4.22351]
[1742579966502,5.8976,1970.1,1970.0,5.52081]
[1742579971500,6.91326,1970.1,1970.0,4.22351]
[1742579972303,5.8976,1970.1,1970.0,4.22351]
[1742579977003,5.8976,1970.1,1970.0,5.63671]
[1742579983315,6.91326,1970.1,1970.0,1.01571]
[1742579983505,1.01576,1970.0,1969.8,5.74725]
[1742579983817,2.41976,1970.0,1969.9,1.01572]
[1742579984015,5.71076,1970.0,1969.9,1.01572]
[1742579990820,5.71076,1970.0,1969.9,2.32652]
[1742579991317,6.51739276,1970.0,1969.9,1.01572]
[1742579992222,6.51739276,1970.0,1969.9,2.30182]
[1742579993114,5.50163276,1970.0,1969.9,2.30182]
[1742579993319,6.51734276,1970.0,1969.9,2.30182]
[1742579996823,5.71071,1970.0,1969.9,2.30182]
[1742579997124,4.695,1970.0,1969.9,2.30182]
[1742579997322,4.695,1970.0,1969.9,3.00092]
[1742579997624,5.50172167,1970.0,1969.9,3.66192]
[1742579997820,6.51743167,1970.0,1969.9,2.30182]
[1742579998320,1.01576,1969.9,1969.8,1.01578]
[1742579998521,2.35116,1969.9,1969.8,2.38248]
[1742579999124,3.15796451,1969.9,1969.8,2.38248]
[1742579999422,2.35116,1969.9,1969.8,2.38248]
[1742580004031,1.3354,1969.9,1969.8,2.38248]
[1742580004330,2.35116,1969.9,1969.8,2.38248]
[1742580004525,0.00761789,1970.2,1970.1,1.01566]
[1742580004830,5.11996158,1970.2,1970.1,1.01566]
[1742580005523,1.01566,1970.1,1970.0,1.69396]
[1742580005724,1.01571,1970.0,1969.9,0.6574]
[1742580005922,1.01576,1969.9,1969.8,4.22356]
[1742580006422,2.31326,1969.9,1969.8,5.50886]
[1742580008129,3.1201772,1969.9,1969.8,5.50886]
[1742580008429,1.01587,1969.8,1969.7,1.01581]
[1742580008626,1.01587,1969.7,1969.6,3.2078]
[1742580008831,1.01597,1969.5,1969.4,5.50909]
[1742580009032,4.30597,1969.5,1969.4,5.50909]
[1742580009327,4.30597,1969.5,1969.4,1.2853]
[1742580009623,4.30597,1969.5,1969.4,2.30132]
[1742580009624,5.11328827,1969.5,1969.4,2.30132]
[1742580009830,4.6319,1969.5,1969.4,5.50912]
[1742580010024,1.01585,1969.8,1969.5,2.53993]
[1742580010227,3.29,1969.7,1969.6,5.56802]
[1742580010432,3.29,1969.7,1969.6,6.94772]
[1742580010625,2.14860948,1969.8,1969.7,1.01587]
[1742580010829,5.64771,1969.8,1969.7,2.39557]
[1742580011131,5.43860948,1969.8,1969.7,2.39557]
[1742580011337,1.3419,1969.8,1969.7,2.39557]
[1742580011632,2.63365707,1970.1,1970.0,1.01571]
[1742580011824,3.17172762,1970.2,1970.1,1.01566]
[1742580012133,4.10417762,1970.2,1970.1,1.69516]
[1742580012431,4.10417762,1970.2,1970.1,3.07486]
[1742580012432,3.29761789,1970.2,1970.1,3.07486]
[1742580012936,4.60571789,1970.2,1970.1,3.07486]
[1742580013323,3.29761789,1970.2,1970.1,3.07486]
[1742580014324,3.29761789,1970.2,1970.1,43.87486]
[1742580014921,0.00761789,1970.2,1970.1,43.87486]
[1742580015127,6.9834,1970.6,1970.5,1.01545]
[1742580015397,3.289,1970.6,1970.5,1.01545]
[1742580015722,3.289,1970.6,1970.5,2.93485]
[1742580016427,4.3044,1970.6,1970.5,2.93485]
[1742580016936,3.289,1970.6,1970.5,3.64135]
[1742580017233,4.3044,1970.6,1970.5,3.64135]
[1742580017528,3.289,1970.6,1970.5,3.64135]
[1742580018135,4.3044,1970.6,1970.5,2.29475]
[1742580018433,1.01545,1970.5,1970.4,1.02307789]
[1742580018731,1.01545,1970.5,1970.0,4.22347]
[1742580018732,1.01566,1970.1,1970.0,4.22347]
[1742580018932,4.30466,1970.1,1970.0,2.41011]
[1742580019929,5.63496,1970.1,1970.0,2.41011]
[1742580023734,5.63496,1970.1,1970.0,1.3944]
[1742580024036,1.01571,1970.0,1969.9,0.00761789]
[1742580024243,3.13901,1970.0,1969.9,0.00761789]
[1742580024426,3.94395325,1970.0,1969.9,0.00761789]
[1742580025140,3.94393786,1970.0,1969.9,0.00761789]
[1742580025336,7.15173786,1970.0,1969.9,0.00761789]
[1742580026336,3.94393786,1970.0,1969.9,0.00761789]
[1742580028037,1.01581,1969.8,1969.7,1.3919]
[1742580028336,4.30481,1969.8,1969.7,1.3919]
[1742580028536,5.10973786,1969.8,1969.7,1.3919]
[1742580028843,7.19453786,1969.8,1969.7,1.3919]
[1742580029539,6.38961,1969.8,1969.7,1.3919]
[1742580030341,6.38961,1969.8,1969.7,2.40777]
[1742580030843,6.38961,1969.8,1969.7,1.3919]
[1742580034251,6.38961,1969.8,1969.7,2.40777]
[1742580034443,6.38961,1969.8,1969.7,1.3919]
[1742580034943,6.38961,1969.8,1969.7,2.40777]
[1742580035146,6.38961,1969.8,1969.7,1.3919]
[1742580035937,1.01587,1969.7,1969.6,2.37422]
[1742580036132,2.34587,1969.7,1969.6,3.69272]
[1742580049448,1.01574,1970.0,1969.7,2.53957]
[1742580049655,2.40614,1970.0,1969.9,1.0157]
[1742580049853,5.69514,1970.0,1969.9,1.0157]
[1742580050054,5.69514,1970.0,1969.9,3.623]
[1742580051147,3.289,1970.0,1969.9,3.623]
[1742580052048,4.30471,1970.0,1969.9,3.623]
[1742580052244,5.66931,1970.0,1969.9,3.623]
[1742580053851,5.66931,1970.0,1969.9,1.2818]
[1742580054055,1.01587,1969.8,1969.7,1.01584]
[1742580054250,1.01587,1969.7,1969.6,1.3094]
[1742580054557,1.01605,1969.5,1969.4,1.01598]
[1742580054747,4.30505,1969.5,1969.4,1.3503]
[1742580054954,5.66965,1969.5,1969.4,1.3503]
[1742580055254,1.01602,1969.4,1969.3,2.32546]
[1742580055448,2.38282,1969.4,1969.3,2.32546]
[1742580055851,2.38282,1969.4,1969.3,1.3094]
[1742580056057,2.38282,1969.4,1969.3,2.32547]
[1742580056954,2.38282,1969.4,1969.3,1.3094]
[1742580057352,2.38282,1969.4,1969.3,3.74617]
[1742580057653,2.38282,1969.4,1969.3,2.7301]
[1742580058558,2.38282,1969.4,1969.3,1.4207]
[1742580059355,1.01612,1969.2,1969.1,4.22396]
[1742580059556,4.30512,1969.2,1969.1,4.22396]
[1742580059752,1.01618,1969.1,1969.0,2.36169]
[1742580059954,1.01618,1969.1,1969.0,1.3455]
[1742580060262,1.01618,1969.1,1969.0,0.6772]
[1742580060758,2.40778,1969.1,1969.0,0.6772]
[1742580061449,2.40778,1969.1,1969.0,1.9604]
[1742580062562,2.40778,1969.1,1969.0,1.2832]
[1742580062759,3.10768,1969.1,1969.0,1.2832]
[1742580063063,1.01628,1968.9,1968.8,2.38409]
[1742580063369,4.30528,1968.9,1968.8,3.66729]
[1742580063558,3.289,1968.9,1968.8,3.66729]
[1742580063759,1.01615,1969.2,1968.9,2.54067]
[1742580064061,3.289,1969.1,1969.0,2.29943]
[1742580064558,2.34877,1969.2,1969.1,1.01618]
[1742580064866,2.34877,1969.2,1969.1,3.02868]
[1742580065259,5.63777,1969.2,1969.1,3.02868]
[1742580066660,3.289,1969.2,1969.1,3.02868]
[1742580066860,3.289,1969.2,1969.1,6.23648]
[1742580067158,1.3326,1969.3,1969.2,1.01612]
[1742580067364,4.6216,1969.3,1969.2,3.10122]
[1742580067861,5.63767,1969.3,1969.2,3.10122]
[1742580068062,4.6216,1969.3,1969.2,3.10122]
[1742580068262,3.289,1969.3,1969.2,3.10122]
[1742580068564,4.30507,1969.3,1969.2,3.10122]
[1742580068962,3.289,1969.3,1969.2,3.10122]
[1742580070964,4.30507,1969.3,1969.2,3.10122]
[1742580071261,5.66887,1969.3,1969.2,3.10122]
[1742580071462,5.66887,1969.3,1969.1,3.8647]
[1742580071463,1.01612,1969.2,1969.1,0.6569]
[1742580071664,2.37992,1969.2,1969.1,1.999]
[1742580071865,2.37992,1969.2,1969.1,1.3421]
[1742580072258,1.3638,1969.2,1968.9,2.41674]
[1742580072560,5.66898,1969.1,1969.0,2.35832]
[1742580073060,5.66898,1969.1,1969.0,1.3421]
[1742580073258,1.01623,1969.0,1968.9,1.01624]
[1742580073457,2.31893,1969.0,1968.9,1.01624]
[1742580073653,2.31893,1969.0,1968.9,2.34974]
[1742580074356,2.31893,1969.0,1968.9,1.3335]
[1742580074551,2.31893,1969.0,1968.9,2.34978]
[1742580075959,2.31893,1969.0,1968.9,1.3335]
[1742580076768,2.31893,1969.0,1968.9,2.34978]
[1742580079267,5.74804,1969.3,1969.0,1.01623]
[1742580079268,1.01613,1969.3,1969.0,1.01623]
[1742580079462,1.01613,1969.3,1969.2,1.01608]
[1742580079664,4.30513,1969.3,1969.2,1.01608]
[1742580079868,4.30513,1969.3,1969.2,2.39138]
[1742580083972,4.30513,1969.3,1969.2,2.39142]
[1742580084271,4.30513,1969.3,1969.2,1.3753]
[1742580084460,1.01612,1969.2,1969.1,2.30054]
[1742580084657,2.31032,1969.2,1969.1,1.2844]
[1742580084861,1.01618,1969.1,1969.0,1.3925]
[1742580085158,1.01628,1968.9,1968.8,5.56358]
[1742580085361,4.30528,1968.9,1968.8,6.30623]
[1742580089173,4.95848,1968.9,1968.8,6.30623]
[1742580090776,4.95848,1968.9,1968.8,5.2899]
[1742580090967,4.95848,1968.9,1968.8,6.30623]
[1742580095987,1.2944,1969.0,1968.8,5.2899]
[1742580096188,50.1588,1969.5,1968.9,1.3441]
[1742580096388,2.35442,1969.2,1969.1,1.01618]
[1742580096693,4.6273,1969.2,1969.1,2.36028]
[1742580096891,5.64342,1969.2,1969.1,2.36028]
[1742580097186,4.6273,1969.2,1969.1,2.36028]
[1742580097386,5.64342,1969.2,1969.1,2.36028]
[1742580097779,4.6273,1969.2,1969.1,2.36028]
[1742580110797,3.289,1969.2,1969.1,2.36028]
[1742580113903,4.607,1969.2,1969.1,2.36028]
[1742580115311,5.62312,1969.2,1969.1,2.36028]
[1742580118606,1.01618,1969.1,1969.0,4.22399]
[1742580118806,3.91239,1969.1,1968.8,3.8747]
[1742580119010,1.01628,1968.9,1968.8,6.18566]
[1742580119314,1.01628,1968.9,1968.8,4.22406]
[1742580119519,2.30208,1968.9,1968.8,4.22406]
[1742580119906,2.30208,1968.9,1968.8,5.54136]
[1742580120816,3.288,1969.0,1968.9,1.01628]
[1742580121003,3.288,1969.0,1968.9,3.03068]
[1742580121004,5.59003,1969.0,1968.9,3.03068]
[1742580121816,4.5738,1969.0,1968.9,3.03068]
[1742580122110,5.59003,1969.0,1968.9,1.01628]
[1742580122506,5.59003,1969.0,1968.9,2.39518]
[1742580125812,1.01628,1968.9,1968.8,4.22409]
[1742580126015,3.76388,1968.9,1968.8,4.22409]
[1742580126919,1.01633,1968.8,1968.7,5.62914]
[1742580127130,5.64973,1968.8,1968.7,2.42134]
[1742580136219,1.3464,1968.8,1968.7,2.42134]
[1742580136432,2.18236359,1969.2,1969.0,1.01618]
[1742580136618,4.3032,1969.1,1969.0,1.66368]
[1742580136822,4.3032,1969.1,1969.0,2.36748]
[1742580137926,5.6429,1969.1,1969.0,3.64868]
[1742580139137,2.3559,1969.1,1969.0,3.64868]
[1742580139333,5.6429,1969.1,1969.0,3.64868]
[1742580144741,1.02358789,1969.6,1969.5,1.01597]
[1742580144927,1.02358789,1969.6,1969.5,1.69797]
[1742580144928,4.31058789,1969.6,1969.5,1.69797]
[1742580145129,5.11755991,1969.6,1969.5,2.38217]
[1742580145428,5.11755991,1969.6,1969.4,1.01602]
[1742580145429,1.01597,1969.5,1969.4,1.01598]
[1742580145735,1.01602,1969.4,1969.3,1.01602]
[1742580145935,4.30302,1969.4,1969.3,1.01602]
[1742580146137,5.65742,1969.4,1969.3,2.35872]
[1742580147339,5.65742,1969.4,1969.3,1.01602]
[1742580147538,1.01607,1969.3,1969.2,2.6817]
[1742580147827,2.99707,1969.3,1969.2,2.6817]
[1742580148033,2.99707,1969.3,1969.2,3.01158]
[1742580148635,3.67457,1969.3,1969.2,3.01158]
[1742580148935,1.01612,1969.2,1969.1,1.01613]
[1742580149128,5.58782,1969.2,1969.1,2.32963]
[1742580149329,5.58782,1969.2,1969.1,1.01613]
[1742580149530,6.39419,1969.2,1969.1,1.01613]
[1742580149740,1.01618,1969.1,1969.0,1.01618]
[1742580150035,2.39338,1969.1,1969.0,1.01618]
[1742580150439,3.19982891,1969.1,1969.0,2.39478]
[1742580150938,2.39338,1969.1,1969.0,2.39478]
[1742580153534,2.39338,1969.1,1969.0,1.3786]
[1742580153739,1.01628,1968.9,1968.8,1.6599]
[1742580153933,4.30228,1968.9,1968.8,1.6599]
[1742580154129,1.01633,1968.8,1968.7,3.12934]
[1742580154329,2.32103,1968.8,1968.7,3.12934]
[1742580158737,2.32103,1968.8,1968.7,2.42694]
[1742580160338,2.32103,1968.8,1968.7,1.4106]
[1742580161339,2.32103,1968.8,1968.7,2.42698]
[1742580161741,2.32103,1968.8,1968.7,1.4106]
[1742580161937,2.32103,1968.8,1968.7,2.42698]
[1742580162344,2.32103,1968.8,1968.7,1.4106]
[1742580163141,1.01638,1968.7,1968.6,1.7061]
[1742580163343,6.26748,1968.7,1968.6,3.0171]
[1742580164442,5.62598,1968.7,1968.6,3.0171]
[1742580169846,5.62598,1968.7,1968.6,2.0007]
[1742580170244,5.62598,1968.7,1968.6,1.311]
[1742580170454,6.27268,1968.7,1968.6,1.311]
[1742580170942,1.01643,1968.6,1968.5,4.88716]
[1742580171137,3.08093,1968.6,1968.5,3.10078]
[1742580174043,3.08093,1968.6,1968.5,2.0843]
[1742580174346,1.01648,1968.5,1968.4,2.8823]
[1742580174645,1.01664,1968.2,1968.1,0.6534]
[1742580174838,4.30264,1968.2,1968.1,2.36845]
[1742580175249,3.286,1968.2,1968.1,2.36845]
[1742580175945,3.286,1968.2,1968.1,3.66715]
[1742580177037,0.00761789,1968.3,1968.2,1.01664]
[1742580177245,0.00761789,1968.3,1968.2,5.53514]
[1742580178249,0.00761789,1968.3,1968.2,7.27844]
[1742580183744,1.01642,1968.7,1968.6,1.01643]
[1742580184055,4.30242,1968.7,1968.6,1.01643]
[1742580184848,5.62792,1968.7,1968.6,2.34863]
[1742580186752,5.62788,1968.7,1968.6,2.34863]
[1742580190159,1.3255,1968.7,1968.6,5.55643]
[1742580190456,0.00761789,1968.8,1968.7,1.01638]
[1742580190651,0.00761789,1968.8,1968.7,2.31568]
[1742580190846,3.286,1969.0,1968.9,1.01628]
[1742580191052,3.286,1969.0,1968.9,4.22408]
[1742580191458,1.3811,1969.2,1969.1,1.01618]
[1742580191659,4.6671,1969.2,1969.1,1.01618]
[1742580192156,4.6671,1969.2,1969.1,1.68428]
[1742580193458,1.3811,1969.2,1969.1,4.89208]
[1742580193657,0.00761789,1969.3,1969.2,1.01612]
[1742580193961,0.00761789,1969.3,1969.2,2.40042]
[1742580194149,0.00761789,1969.3,1969.2,3.05722]
[1742580194355,3.29361789,1969.3,1969.2,3.05722]
[1742580197458,3.29261789,1969.3,1969.2,3.05722]
[1742580202559,0.00761789,1969.3,1969.2,3.05722]
[1742580203562,3.285,1970.1,1970.0,1.01571]
[1742580203863,4.30066,1970.1,1970.0,1.01571]
[1742580204266,1.01571,1970.0,1969.9,3.00452]
[1742580204465,2.42431,1970.0,1969.9,1.01572]
[1742580204863,1.01576,1969.9,1969.8,4.23118789]
[1742580205063,3.13206,1969.9,1969.8,5.55318789]
[1742580205362,6.41606,1969.9,1969.8,1.02338789]
[1742580205558,6.41606,1969.9,1969.8,0.00761789]
[1742580205961,6.41606,1969.9,1969.8,0.48681789]
[1742580206364,9.62386,1969.9,1969.8,0.48681789]
[1742580206565,6.41606,1969.9,1969.8,0.48681789]
[1742580206961,9.41072243,1969.9,1969.4,1.01598]
[1742580207176,1.01597,1969.5,1969.4,1.01598]
[1742580207366,4.29997,1969.5,1969.4,1.01598]
[1742580207963,1.01602,1969.4,1969.3,1.01604]
[1742580208169,1.01602,1969.4,1969.3,1.02365789]
[1742580208170,2.33172,1969.4,1969.3,1.02365789]
[1742580208364,2.33172,1969.4,1969.3,2.43675789]
[1742580209469,1.3157,1969.4,1969.3,2.43675789]
[1742580209673,2.33172,1969.4,1969.3,2.43675789]
[1742580210170,2.33172,1969.4,1969.3,4.17795789]
[1742580213974,1.3157,1969.4,1969.3,4.17795789]
[1742580214166,1.3157,1969.4,1969.3,4.85535789]
[1742580214774,2.33172,1969.4,1969.3,4.85535789]
[1742580214963,1.3157,1969.4,1969.3,4.85535789]
[1742580222776,2.33172,1969.4,1969.3,4.85535789]
[1742580223282,1.3157,1969.4,1969.3,4.85535789]
[1742580223483,2.33172,1969.4,1969.3,4.85535789]
[1742580225083,1.3157,1969.4,1969.3,4.85535789]
[1742580225887,2.33172,1969.4,1969.3,4.85535789]
[1742580228392,1.3157,1969.4,1969.3,4.85535789]
[1742580228896,2.33172,1969.4,1969.3,4.85535789]
[1742580229186,1.3157,1969.4,1969.3,4.85535789]
[1742580229588,2.33172,1969.4,1969.3,4.85535789]
[1742580230993,1.3157,1969.4,1969.3,4.85535789]
[1742580231288,2.33172,1969.4,1969.3,4.85535789]
[1742580239493,2.33172,1969.4,1969.3,4.17798789]
[1742580240681,2.33172,1969.4,1969.3,4.82638789]
[1742580240682,1.3157,1969.4,1969.3,4.82638789]
[1742580241087,2.33172,1969.4,1969.3,4.82638789]
[1742580244295,1.3157,1969.4,1969.3,4.82638789]
[1742580244695,4.30001,1969.5,1969.4,1.01602]
[1742580244892,0.80798545,1969.6,1969.5,1.01597]
[1742580245195,1.82378545,1969.9,1969.8,1.01581]
[1742580245393,1.01584,1969.8,1969.7,1.65971]
[1742580245597,2.42394,1969.8,1969.7,3.03721]
[1742580246090,1.4081,1969.8,1969.7,3.03721]
[1742580246492,2.42391,1969.8,1969.7,3.03721]
[1742580246689,3.23103131,1969.8,1969.7,3.03721]
[1742580248094,2.42391,1969.8,1969.7,3.03721]
[1742580248296,1.4081,1969.8,1969.7,3.03721]
[1742580248593,4.6901,1969.8,1969.7,4.77701]
[1742580248986,1.4081,1969.8,1969.7,4.77701]
[1742580249193,1.01579,1969.9,1969.8,1.01581]
[1742580249397,4.29779,1969.9,1969.8,5.58201]
[1742580249591,5.10419922,1969.9,1969.8,1.3584]
[1742580249796,5.10419922,1969.9,1969.8,2.37421]
[1742580249797,5.75239922,1969.9,1969.8,2.37421]
[1742580250595,7.06979922,1969.9,1969.8,2.37421]
[1742580250995,6.26339,1969.9,1969.8,2.37421]
[1742580251592,6.26339,1969.9,1969.8,1.3584]
[1742580252101,7.06962116,1969.9,1969.8,2.37421]
[1742580252500,6.26339,1969.9,1969.8,2.37421]
[1742580252895,6.26339,1969.9,1969.8,1.3584]
[1742580253798,6.26339,1969.9,1969.7,2.3837]
[1742580253799,1.01581,1969.8,1969.7,2.3837]
[1742580254005,3.20638784,1969.8,1969.7,1.7398]
[1742580254303,3.88368784,1969.8,1969.7,1.7398]
[1742580255297,2.40021,1969.8,1969.7,2.75567]
[1742580255607,3.20642476,1969.8,1969.7,1.7398]
[1742580256005,3.20642476,1969.8,1969.7,3.0278]
[1742580257710,2.40021,1969.8,1969.7,3.0278]
[1742580257910,3.20645263,1969.8,1969.7,3.0278]
[1742580258205,3.20645263,1969.8,1969.7,1.7398]
[1742580258409,3.2906025,1969.8,1969.7,1.7398]
[1742580258812,4.10176285,1969.8,1969.7,1.7398]
[1742580259613,3.2906025,1969.8,1969.7,1.7398]
[1742580260509,4.10175611,1969.8,1969.7,1.7398]
[1742580264415,4.10175687,1969.8,1969.7,1.7398]
[1742580269323,4.10175687,1969.8,1969.7,2.75567]
[1742580269620,6.57260081,1969.8,1969.7,2.398]
[1742580269921,6.57260064,1969.8,1969.7,2.398]
[1742580270819,7.38394499,1969.8,1969.7,3.7568]
[1742580271020,7.38394564,1969.8,1969.7,3.7568]
[1742580271221,7.38393126,1969.8,1969.7,3.7568]
[1742580272814,7.3839315,1969.8,1969.7,3.7568]
[1742580277623,7.38393159,1969.8,1969.7,3.7568]
[1742580278025,7.38393159,1969.8,1969.7,4.77267]
[1742580278225,7.38393159,1969.8,1969.7,3.7568]
[1742580279228,7.38393169,1969.8,1969.7,3.7568]
[1742580279729,7.38393169,1969.8,1969.7,1.7398]
[1742580280023,2.53967,1969.7,1968.8,1.01628]
[1742580280219,1.01618,1969.1,1969.0,2.6935]
[1742580280414,4.29718,1969.1,1969.0,3.70973]
[1742580280622,4.29718,1969.1,1969.0,2.6935]
[1742580281313,5.65818,1969.1,1969.0,2.6935]
[1742580283125,8.86598,1969.1,1969.0,0.702]
[1742580283624,8.86598,1969.1,1969.0,2.0498]
[1742580287730,1.01623,1969.0,1968.9,0.00761789]
[1742580288030,2.38573,1969.0,1968.9,0.00761789]
[1742580290021,3.27488508,1969.0,1968.9,0.00761789]
[1742580290224,3.27488512,1969.0,1968.9,0.00761789]
[1742580290624,2.46992384,1969.0,1968.9,0.00761789]
[1742580291117,2.38573,1969.0,1968.9,0.00761789]
[1742580291727,2.46991844,1969.0,1968.9,0.00761789]
[1742580292128,2.38573,1969.0,1968.9,0.00761789]
[1742580292331,2.38573,1969.0,1968.9,0.68981789]
[1742580292827,2.38573,1969.0,1968.9,2.04621789]
[1742580295036,2.46991856,1969.0,1968.9,2.04621789]
[1742580295236,2.38573,1969.0,1968.9,2.04621789]
[1742580295535,2.38573,1969.0,1968.9,1.36401789]
[1742580295735,2.46991818,1969.0,1968.9,1.36401789]
[1742580296036,2.38573,1969.0,1968.9,1.36401789]
[1742580296534,2.46991853,1969.0,1968.9,1.36401789]
[1742580296732,2.46991891,1969.0,1968.9,1.36401789]
[1742580296924,2.469919,1969.0,1968.9,1.36401789]
[1742580297828,3.27434033,1969.0,1968.9,0.00761789]
[1742580298938,2.46992124,1969.0,1968.9,0.00761789]
[1742580299335,9.24237059,1969.0,1968.9,0.00761789]
[1742580300234,9.24237357,1969.0,1968.9,0.00761789]
[1742580300531,3.27437357,1969.0,1968.9,0.00761789]
[1742580300937,4.0836172,1969.0,1968.9,0.00761789]
[1742580302341,3.27437357,1969.0,1968.9,0.00761789]
[1742580302640,4.08364004,1969.0,1968.9,0.00761789]
[1742580303341,4.08360134,1969.0,1968.9,0.00761789]
[1742580304537,4.08360759,1969.0,1968.9,0.00761789]
[1742580306030,3.99940712,1969.0,1968.9,0.00761789]
[1742580306235,4.08360867,1969.0,1968.9,0.00761789]
[1742580309345,4.08361183,1969.0,1968.9,0.00761789]
[1742580311143,7.36561183,1969.0,1968.9,0.71531789]
[1742580311338,1.90488406,1969.0,1968.9,0.71531789]
[1742580311538,4.29823,1969.0,1968.9,0.71531789]
[1742580311744,5.18686678,1969.0,1968.9,2.00441789]
[1742580311944,5.10267935,1969.0,1968.9,2.00441789]
[1742580312145,6.59406646,1969.0,1968.9,2.00441789]
[1742580312647,6.59406827,1969.0,1968.9,2.00441789]
[1742580314052,6.50987935,1969.0,1968.9,2.00441789]
[1742580314242,6.59406932,1969.0,1968.9,2.00441789]
[1742580314549,7.4057415,1969.0,1968.9,2.00441789]
[1742580317448,7.4057415,1969.0,1968.9,1.29671789]
[1742580318442,7.4057415,1969.0,1968.9,0.00761789]
[1742580318642,7.4057415,1969.0,1968.9,7.89e-06]
[1742580318843,1.01633,1968.8,1968.7,0.64]
[1742580319045,7.58933109,1968.8,1968.7,1.9879]
[1742580319351,9.20545262,1968.8,1968.7,1.9879]
[1742580319552,10.50825262,1968.8,1968.7,1.9879]
[1742580320153,10.42405153,1968.8,1968.7,1.9879]
[1742580321049,9.40772153,1968.8,1968.1,1.01665]
[1742580321354,1.01648,1968.5,1968.4,2.0043]
[1742580321554,5.91360153,1968.5,1968.4,0.6672]
[1742580321754,6.55723456,1968.5,1968.4,0.6672]
[1742580322362,6.47302935,1968.5,1968.4,0.6672]
[1742580322561,6.55724314,1968.5,1968.4,0.6672]
[1742580322764,7.36916121,1968.5,1968.4,0.6672]
[1742580323163,6.55724314,1968.5,1968.4,0.6672]
[1742580323765,9.76504314,1968.5,1968.4,0.6672]
[1742580323966,9.76504319,1968.5,1968.4,0.6672]
[1742580325563,9.76504567,1968.5,1968.4,0.6672]
[1742580325770,1.01659,1968.3,1968.2,0.7081]
[1742580325972,7.58960632,1968.3,1968.2,0.7081]
[1742580326170,8.39405567,1968.3,1968.2,0.7081]
[1742580326366,1.01674,1968.0,1967.9,0.6782]
[1742580326572,4.29774,1968.0,1967.9,0.6782]
[1742580329076,1.0169,1967.7,1967.6,0.6778]
[1742580329270,4.2989,1967.7,1967.6,0.6778]
[1742580330167,4.2989,1967.7,1967.6,1.69475]
[1742580330474,3.282,1967.7,1967.6,1.69475]
[1742580330675,4.2989,1967.7,1967.6,1.69475]
[1742580331470,4.2989,1967.7,1967.6,0.6778]
[1742580331672,4.2989,1967.7,1967.6,1.69475]
[1742580332170,4.2989,1967.7,1967.6,0.6778]
[1742580332370,4.2989,1967.7,1967.6,1.69475]
[1742580332771,4.2989,1967.7,1967.6,0.6778]
[1742580333574,4.2989,1967.7,1967.6,1.69475]
[1742580334183,4.2989,1967.7,1967.6,0.6778]
[1742580334377,4.2989,1967.7,1967.6,1.69475]
[1742580334674,4.2989,1967.7,1967.6,0.6778]
[1742580335265,5.6977,1967.7,1967.6,3.10305]
[1742580335477,4.2989,1967.7,1967.6,3.10305]
[1742580337678,4.2989,1967.7,1967.6,2.0861]
[1742580337877,5.6977,1967.7,1967.6,2.0861]
[1742580338272,5.6977,1967.7,1967.6,1.4083]
[1742580339270,2.54253,1967.5,1966.9,3.2078]
[1742580339475,1.0171,1967.3,1967.2,3.03856]
[1742580339783,1.0171,1967.3,1967.2,2.0214]
[1742580339979,2.4026,1967.3,1967.2,2.0214]
[1742580340175,1.0171,1967.3,1967.2,3.03856]
[1742580341088,1.3855,1967.4,1967.3,1.0171]
[1742580341286,1.01704,1967.5,1967.4,1.01702]
[1742580341477,4.29904,1967.5,1967.4,2.33522]
[1742580342984,4.29904,1967.5,1967.4,1.3182]
[1742580343183,4.29904,1967.5,1967.4,2.33525]
[1742580343987,4.29904,1967.5,1967.4,1.3182]
[1742580344181,4.29904,1967.5,1967.4,2.33525]
[1742580344885,4.29904,1967.5,1967.4,1.3182]
[1742580346485,4.29904,1967.5,1967.4,2.33525]
[1742580346692,3.282,1967.5,1967.4,2.33525]
[1742580346984,4.299,1967.5,1967.4,2.33525]
[1742580347484,3.282,1967.5,1967.4,2.33525]
[1742580347989,4.299,1967.5,1967.4,2.33525]
[1742580348383,1.02446789,1967.8,1967.7,1.0169]
[1742580348680,4.30646789,1967.8,1967.7,1.0169]
[1742580349386,4.30646789,1967.8,1967.7,2.3477]